[Event "FIDE World School-ch O-9 2025"]
[Site "Vrnjacka Banja"]
[Date "2025.03.25"]
[Round "6.1"]
[White "Agar, Garig"]
[Black "Sultankhan, Nurislam"]
[Result "1-0"]
[Annotator "NA RC"]
[ECO "A41"]
[WhiteElo "1620"]
[BlackElo "1649"]
[PlyCount "147"]
[EventDate "2025.03.19"]
[EventType "swiss"]
[EventCountry "SRB"]
[SourceTitle "playchess.com"]
[Source "ChessBase"]
[SourceQuality "1"]
[TimeControl "5400+30"]

1. d4 {[%emt 0:00:57]} d6 {[%emt 0:00:45]} 2. e4 {[%emt 0:01:05]} e5 {[%emt 0:00:46]} 3. Nf3 {[%emt 0:01:25]} Nc6 {[%emt 0:01:28]} 4. d5 {[%emt 0:01:16]} Nce7 {[%emt 0:01:42]} 5. c4 {[%emt 0:00:54]} f5 {[%emt 0:02:04]} 6. Nc3 {[%emt 0:00:11]} Nf6 {[%emt 0:01:39]} 7. Bd3 {[%emt 0:01:15]} g6 {[%emt 0:04:02]} 8. O-O {[%emt 0:02:03]} Bg7 {[%emt 0:01:12]} 9. b4 {[%emt 0:00:59]} O-O {[%emt 0:02:54]} 10. a4 {[%emt 0:05:42]} f4 {[%emt 0:05:54]} 11. c5 {[%emt 0:03:01]} h6 {[%emt 0:02:46]} 12. Nd2 {[%emt 0:07:18]} g5 {[%emt 0:03:08]} 13. Nc4 {[%emt 0:02:00]} a6 {[%emt 0:01:49]} 14. cxd6 {[%emt 0:05:47]} cxd6 {[%emt 0:01:28]} 15. b5 {[%emt 0:00:08]} Bg4 {[%emt 0:11:34]} 16. f3 {[%emt 0:01:33]} Bh5 {[%emt 0:02:39]} 17. Ba3 {[%emt 0:02:31]} Ne8 {[%emt 0:01:12]} 18. Rb1 {[%emt 0:13:02]} Rc8 {[%emt 0:06:16]} 19. Na2 {[%emt 0:05:37]} Rb8 {[%emt 0:08:33]} 20. Be2 {[%emt 0:04:55]} Bg6 {[%emt 0:06:23]} 21. Qd2 {[%emt 0:09:37]} Ra8 {[%emt 0:12:39]} 22. bxa6 {[%emt 0:03:24]} bxa6 {[%emt 0:02:22]} 23. Qa5 {[%emt 0:02:14]} Qd7 {[%emt 0:06:05]} 24. Qb6 {[%emt 0:06:37]} Bf7 {[%emt 0:08:22]} 25. Nxd6 {[%emt 0:00:46]} Qxa4 {[%emt 0:00:24]} 26. Qb4 {[%emt 0:03:59]} Qd7 {[%emt 0:00:46]} 27. Qb7 {[%emt 0:03:19]} Qd8 {[%emt 0:01:48]} 28. Nxf7 {[%emt 0:03:07]} Rxf7 {[%emt 0:00:15]} 29. d6 {[%emt 0:00:09]} Rc8 {[%emt 0:00:31]} 30. dxe7 {[%emt 0:01:08]} Qd4+ {[%emt 0:00:09]} 31. Kh1 {[%emt 0:00:13]} Rc2 {[%emt 0:00:15]} 32. Qb8 {[%emt 0:01:00]} Qd7 {[%emt 0:00:44]} 33. Rbd1 {[%emt 0:00:37]} Qa4 {[%emt 0:00:37]} 34. Rd8 {[%emt 0:00:15]} Rxe7 {[%emt 0:00:46]} 35. Bxe7 {[%emt 0:00:09]} Rxe2 {[%emt 0:00:13]} 36. Rxe8+ {[%emt 0:00:26]} Kf7 {[%emt 0:00:10]} 37. Nc3 {[%emt 0:00:17]} Rf2 {[%emt 0:00:03]} 38. Rxf2 {[%emt 0:00:49]} Qa1+ {[%emt 0:00:10]} 39. Nb1 {[%emt 0:00:27]} Qd4 {[%emt 0:00:11]} 40. Rf8+ {[%emt 0:00:21]} Kxe7 {[%emt 0:00:24]} 41. Qd8+ {[%emt 0:00:13]} Qxd8 {[%emt 0:00:18]} 42. Rxd8 {[%emt 0:00:07]} Kxd8 {[%emt 0:00:13]} 43. Ra2 {[%emt 0:00:05]} Ke7 {[%emt 0:00:10]} 44. Rxa6 {[%emt 0:00:08]} Kf7 {[%emt 0:00:11]} 45. Nd2 {[%emt 0:00:24]} Kg8 {[%emt 0:00:10]} 46. Nc4 {[%emt 0:00:10]} Kf7 {[%emt 0:00:09]} 47. Ra7+ {[%emt 0:00:17]} Kg6 {[%emt 0:00:09]} 48. Rxg7+ {[%emt 0:00:08]} Kxg7 {[%emt 0:00:01]} 49. Nxe5 {[%emt 0:00:10]} Kf6 {[%emt 0:00:11]} 50. Ng4+ {[%emt 0:00:07]} Kg6 {[%emt 0:00:13]} 51. Kg1 {[%emt 0:00:25]} h5 {[%emt 0:00:09]} 52. Ne5+ {[%emt 0:00:08]} Kf6 {[%emt 0:00:01]} 53. Nd3 {[%emt 0:00:11]} Ke6 {[%emt 0:00:10]} 54. h4 {[%emt 0:00:14]} Kf6 {[%emt 0:00:27]} 55. hxg5+ {[%emt 0:00:14]} Kxg5 {[%emt 0:00:02]} 56. Kf2 {[%emt 0:00:13]} h4 {[%emt 0:00:08]} 57. Ke2 {[%emt 0:00:10]} Kf6 {[%emt 0:00:09]} 58. Nxf4 {[%emt 0:00:10]} Kg5 {[%emt 0:00:08]} 59. Nh3+ {[%emt 0:00:07]} Kf6 {[%emt 0:00:15]} 60. Ke3 {[%emt 0:00:06]} Ke5 {[%emt 0:00:08]} 61. f4+ {[%emt 0:00:11]} Kf6 {[%emt 0:00:05]} 62. e5+ {[%emt 0:00:14]} Ke6 {[%emt 0:00:32]} 63. Ke4 {[%emt 0:00:11]} Ke7 {[%emt 0:01:07]} 64. f5 {[%emt 0:00:19]} Kf7 {[%emt 0:00:03]} 65. e6+ {[%emt 0:00:19]} Kf6 {[%emt 0:00:06]} 66. Kf4 {[%emt 0:00:07]} Ke7 {[%emt 0:00:07]} 67. Ke5 {[%emt 0:00:07]} Ke8 {[%emt 0:00:13]} 68. f6 {[%emt 0:00:14]} Kf8 {[%emt 0:00:04]} 69. e7+ {[%emt 0:00:06]} Kf7 {[%emt 0:00:10]} 70. Ng5+ {[%emt 0:00:07]} Kg6 {[%emt 0:00:17]} 71. e8=Q+ {[%emt 0:00:08]} Kxg5 {[%emt 0:00:15]} 72. Qg8+ {[%emt 0:00:06]} Kh5 {[%emt 0:00:20]} 73. Kf5 {[%emt 0:00:07]} Kh6 {[%emt 0:00:12]} 74. Qg6# {[%emt 0:00:29]} 1-0

[Event "FIDE World School-ch O-9 2025"]
[Site "Vrnjacka Banja"]
[Date "2025.03.25"]
[Round "6.2"]
[White "Ulan, Rizat"]
[Black "Batbileg, Boldbaatar"]
[Result "1/2-1/2"]
[Annotator "NA RC"]
[ECO "C55"]
[WhiteElo "1769"]
[BlackElo "1637"]
[PlyCount "149"]
[EventDate "2025.03.19"]
[EventType "swiss"]
[EventCountry "SRB"]
[SourceTitle "playchess.com"]
[Source "ChessBase"]
[SourceQuality "1"]
[TimeControl "5400+30"]

1. e4 {[%emt 0:00:01]} e5 {[%emt 0:03:27]} 2. Nf3 {[%emt 0:00:04]} Nc6 {[%emt 0:00:14]} 3. Bc4 {[%emt 0:00:05]} Nf6 {[%emt 0:00:34]} 4. d3 {[%emt 0:00:14]} Be7 {[%emt 0:00:46]} 5. O-O {[%emt 0:00:14]} O-O {[%emt 0:00:30]} 6. Re1 {[%emt 0:00:06]} d6 {[%emt 0:00:21]} 7. a4 {[%emt 0:00:33]} Na5 {[%emt 0:00:13]} 8. Ba2 {[%emt 0:00:08]} c5 {[%emt 0:00:14]} 9. c3 {[%emt 0:03:42]} Nc6 {[%emt 0:00:31]} 10. Nbd2 {[%emt 0:01:32]} h6 {[%emt 0:04:52]} 11. Nf1 {[%emt 0:02:45]} a6 {[%emt 0:02:00]} 12. h3 {[%emt 0:13:10]} Re8 {[%emt 0:00:27]} 13. Ng3 {[%emt 0:03:13]} Bf8 {[%emt 0:02:47]} 14. Be3 {[%emt 0:13:23]} Be6 {[%emt 0:01:10]} 15. Bxe6 {[%emt 0:00:20]} Rxe6 {[%emt 0:00:09]} 16. d4 {[%emt 0:01:00]} Re8 {[%emt 0:02:45]} 17. dxc5 {[%emt 0:06:11]} dxc5 {[%emt 0:00:18]} 18. Qe2 {[%emt 0:00:14]} Qc7 {[%emt 0:00:52]} 19. Red1 {[%emt 0:02:05]} Rad8 {[%emt 0:01:42]} 20. Nd2 {[%emt 0:06:07]} Na5 {[%emt 0:07:55]} 21. b3 {[%emt 0:12:04]} Rd7 {[%emt 0:02:27]} 22. Rac1 {[%emt 0:10:58]} Nc6 {[%emt 0:06:21]} 23. Nc4 {[%emt 0:10:39]} Red8 {[%emt 0:00:20]} 24. Rxd7 {[%emt 0:00:17]} Qxd7 {[%emt 0:01:50]} 25. a5 {[%emt 0:02:03]} g6 {[%emt 0:08:45]} 26. f3 {[%emt 0:00:43]} Qd3 {[%emt 0:01:06]} 27. Kf2 {[%emt 0:00:09]} Qd7 {[%emt 0:01:43]} 28. Kf1 {[%emt 0:00:38]} Qc7 {[%emt 0:02:31]} 29. b4 {[%emt 0:00:30]} Nd7 {[%emt 0:00:58]} 30. Qb2 {[%emt 0:09:27]} Rc8 {[%emt 0:07:13]} 31. Bd2 {[%emt 0:01:51]} b6 {[%emt 0:01:31]} 32. axb6 {[%emt 0:00:34]} Nxb6 {[%emt 0:00:14]} 33. Ne3 {[%emt 0:00:11]} Qd7 {[%emt 0:00:57]} 34. Ne2 {[%emt 0:00:49]} Qd3 {[%emt 0:04:52]} 35. Rd1 {[%emt 0:00:41]} cxb4 {[%emt 0:00:47]} 36. cxb4 {[%emt 0:00:44]} Nd4 {[%emt 0:00:22]} 37. Re1 {[%emt 0:00:54]} Nc2 {[%emt 0:00:50]} 38. Nxc2 {[%emt 0:00:39]} Rxc2 {[%emt 0:00:09]} 39. Qxe5 {[%emt 0:00:27]} Qxd2 {[%emt 0:00:56]} 40. Qd4 {[%emt 0:00:32]} Bxb4 {[%emt 0:01:36]} 41. Qxd2 {[%emt 0:00:05]} Bxd2 {[%emt 0:00:51]} 42. Rb1 {[%emt 0:00:05]} Nc4 {[%emt 0:00:21]} 43. Rb8+ {[%emt 0:00:06]} Kg7 {[%emt 0:00:19]} 44. Nd4 {[%emt 0:00:06]} Rc1+ {[%emt 0:01:30]} 45. Ke2 {[%emt 0:00:04]} Bf4 {[%emt 0:02:55]} 46. Rb7 {[%emt 0:00:08]} Be5 {[%emt 0:01:50]} 47. Ne6+ {[%emt 0:00:03]} Kf6 {[%emt 0:00:33]} 48. Nc5 {[%emt 0:00:19]} Bd6 {[%emt 0:02:30]} 49. Nb3 {[%emt 0:01:17]} Rb1 {[%emt 0:00:33]} 50. Kd3 {[%emt 0:00:08]} Ne5+ {[%emt 0:01:27]} 51. Kc2 {[%emt 0:00:09]} Rg1 {[%emt 0:00:09]} 52. f4 {[%emt 0:00:18]} Rxg2+ {[%emt 0:00:41]} 53. Kd1 {[%emt 0:00:24]} Nd3 {[%emt 0:01:25]} 54. e5+ {[%emt 0:00:04]} Nxe5 {[%emt 0:00:27]} 55. fxe5+ {[%emt 0:00:04]} Bxe5 {[%emt 0:00:08]} 56. Rb6+ {[%emt 0:00:17]} Kg5 {[%emt 0:00:09]} 57. Rxa6 {[%emt 0:00:02]} f5 {[%emt 0:00:10]} 58. Nd2 {[%emt 0:00:11]} Kf4 {[%emt 0:00:59]} 59. Ra4+ {[%emt 0:00:07]} Kg3 {[%emt 0:00:48]} 60. Ra3+ {[%emt 0:00:12]} Kf2 {[%emt 0:01:40]} 61. Rf3+ {[%emt 0:00:46]} Kg1 {[%emt 0:00:15]} 62. Rf1+ {[%emt 0:00:04]} Kh2 {[%emt 0:00:20]} 63. Nf3+ {[%emt 0:00:02]} Kxh3 {[%emt 0:00:15]} 64. Nxe5 {[%emt 0:00:03]} Kh2 {[%emt 0:09:19]} 65. Nf3+ {[%emt 0:01:25]} Kg3 {[%emt 0:00:24]} 66. Ne1 {[%emt 0:00:08]} Ra2 {[%emt 0:00:58]} 67. Rg1+ {[%emt 0:00:04]} Kf4 {[%emt 0:01:10]} 68. Rxg6 {[%emt 0:00:07]} h5 {[%emt 0:00:27]} 69. Ng2+ {[%emt 0:00:23]} Kf3 {[%emt 0:00:18]} 70. Nh4+ {[%emt 0:00:06]} Kf4 {[%emt 0:00:36]} 71. Ng2+ {[%emt 0:00:12]} Ke4 {[%emt 0:00:34]} 72. Rg5 {[%emt 0:00:52]} Rb2 {[%emt 0:00:59]} 73. Ke1 {[%emt 0:00:34]} Rb1+ {[%emt 0:03:19]} 74. Kf2 {[%emt 0:00:58]} Rh1 {[%emt 0:00:43]} 75. Rg8 {[%emt 0:02:07]} 1/2-1/2

[Event "FIDE World School-ch O-9 2025"]
[Site "Vrnjacka Banja"]
[Date "2025.03.25"]
[Round "6.3"]
[White "Wee, Yu Heng Lucas John"]
[Black "Lau, Great Boyou"]
[Result "1/2-1/2"]
[Annotator "NA RC"]
[ECO "E97"]
[WhiteElo "1680"]
[BlackElo "1593"]
[PlyCount "113"]
[EventDate "2025.03.19"]
[EventType "swiss"]
[EventCountry "SRB"]
[SourceTitle "playchess.com"]
[Source "ChessBase"]
[SourceQuality "1"]
[TimeControl "5400+30"]

1. d4 {[%emt 0:00:28]} Nf6 {[%emt 0:00:06]} 2. c4 {[%emt 0:00:13]} g6 {[%emt 0:00:07]} 3. Nc3 {[%emt 0:00:06]} Bg7 {[%emt 0:00:05]} 4. e4 {[%emt 0:00:12]} d6 {[%emt 0:00:05]} 5. Nf3 {[%emt 0:00:05]} O-O {[%emt 0:00:06]} 6. Be2 {[%emt 0:00:07]} e5 {[%emt 0:00:08]} 7. O-O {[%emt 0:00:07]} Nc6 {[%emt 0:00:06]} 8. d5 {[%emt 0:00:03]} Ne7 {[%emt 0:00:12]} 9. Nd2 {[%emt 0:00:05]} Ne8 {[%emt 0:00:21]} 10. b4 {[%emt 0:00:16]} f5 {[%emt 0:00:17]} 11. c5 {[%emt 0:00:28]} f4 {[%emt 0:01:11]} 12. Nc4 {[%emt 0:05:53]} Rf7 {[%emt 0:03:00]} 13. a4 {[%emt 0:08:39]} g5 {[%emt 0:02:06]} 14. Bh5 {[%emt 0:07:01]} Ng6 {[%emt 0:01:56]} 15. Ba3 {[%emt 0:07:41]} Nf6 {[%emt 0:04:03]} 16. h3 {[%emt 0:05:43]} Nxh5 {[%emt 0:00:55]} 17. Qxh5 {[%emt 0:00:19]} f3 {[%emt 0:01:59]} 18. g3 {[%emt 0:02:27]} Rf6 {[%emt 0:24:57]} 19. cxd6 {[%emt 0:16:48]} cxd6 {[%emt 0:00:30]} 20. Nb5 {[%emt 0:03:23]} Qd7 {[%emt 0:34:02]} 21. Ncxd6 {[%emt 0:13:37]} Nh4 {[%emt 0:03:09]} 22. Qe8+ {[%emt 0:02:29]} Bf8 {[%emt 0:01:03]} 23. Qxd7 {[%emt 0:01:20]} Bxd7 {[%emt 0:00:09]} 24. gxh4 {[%emt 0:01:29]} Bxd6 {[%emt 0:00:18]} 25. hxg5 {[%emt 0:00:15]} Rg6 {[%emt 0:00:10]} 26. Nxd6 {[%emt 0:01:13]} Rxd6 {[%emt 0:00:09]} 27. b5 {[%emt 0:01:12]} Rg6 {[%emt 0:00:17]} 28. Kh2 {[%emt 0:01:16]} Rxg5 {[%emt 0:00:44]} 29. Rg1 {[%emt 0:00:13]} Rxg1 {[%emt 0:01:39]} 30. Rxg1+ {[%emt 0:01:31]} Kf7 {[%emt 0:01:18]} 31. Rg3 {[%emt 0:00:15]} Rc8 {[%emt 0:00:34]} 32. Rxf3+ {[%emt 0:00:07]} Kg6 {[%emt 0:00:27]} 33. Rb3 {[%emt 0:03:16]} Rc4 {[%emt 0:02:24]} 34. Rg3+ {[%emt 0:01:04]} Kf7 {[%emt 0:01:43]} 35. Rf3+ {[%emt 0:00:44]} Kg6 {[%emt 0:00:13]} 36. Re3 {[%emt 0:00:36]} Rxa4 {[%emt 0:00:11]} 37. Bd6 {[%emt 0:00:10]} Kf6 {[%emt 0:01:14]} 38. Rf3+ {[%emt 0:02:13]} Kg5 {[%emt 0:01:07]} 39. Rf7 {[%emt 0:01:58]} Bxb5 {[%emt 0:02:14]} 40. Rxb7 {[%emt 0:00:43]} a6 {[%emt 0:01:09]} 41. Bxe5 {[%emt 0:00:54]} Rxe4 {[%emt 0:00:38]} 42. f4+ {[%emt 0:00:20]} Kh6 {[%emt 0:01:30]} 43. d6 {[%emt 0:00:39]} Re2+ {[%emt 0:00:40]} 44. Kg3 {[%emt 0:00:19]} Kg6 {[%emt 0:08:52]} 45. Rg7+ {[%emt 0:02:36]} Kf5 {[%emt 0:00:34]} 46. Rf7+ {[%emt 0:01:15]} Ke6 {[%emt 0:00:16]} 47. Re7+ {[%emt 0:00:05]} Kf5 {[%emt 0:00:06]} 48. Rxh7 {[%emt 0:00:38]} a5 {[%emt 0:01:27]} 49. Ra7 {[%emt 0:00:49]} a4 {[%emt 0:00:25]} 50. h4 {[%emt 0:03:32]} Re3+ {[%emt 0:00:13]} 51. Kf2 {[%emt 0:01:19]} Rh3 {[%emt 0:04:55]} 52. h5 {[%emt 0:00:44]} Rxh5 {[%emt 0:00:00]} 53. d7 {[%emt 0:00:09]} Rh2+ {[%emt 0:00:00]} 54. Ke1 {[%emt 0:00:57]} Bxd7 {[%emt 0:00:33]} 55. Rxd7 {[%emt 0:00:08]} a3 {[%emt 0:00:13]} 56. Rf7+ {[%emt 0:02:08]} Ke4 {[%emt 0:00:45]} 57. Ra7 {[%emt 0:06:43]} 1/2-1/2

[Event "FIDE World School-ch O-9 2025"]
[Site "Vrnjacka Banja"]
[Date "2025.03.25"]
[Round "6.4"]
[White "Shenal, Navindu"]
[Black "Nematillakhonov, Nurmuhammad"]
[Result "0-1"]
[Annotator "NA RC"]
[ECO "A08"]
[WhiteElo "1438"]
[BlackElo "1767"]
[PlyCount "90"]
[EventDate "2025.03.19"]
[EventType "swiss"]
[EventCountry "SRB"]
[SourceTitle "playchess.com"]
[Source "ChessBase"]
[SourceQuality "1"]
[TimeControl "5400+30"]

1. e4 {[%emt 0:00:02]} c5 {[%emt 0:03:00]} 2. Nf3 {[%emt 0:00:12]} Nc6 {[%emt 0:00:08]} 3. d3 {[%emt 0:00:11]} Nf6 {[%emt 0:01:16]} 4. g3 {[%emt 0:00:09]} d5 {[%emt 0:00:15]} 5. Nbd2 {[%emt 0:01:00]} e5 {[%emt 0:00:56]} 6. Bg2 {[%emt 1:31:56]} Be7 7. O-O {[%emt 0:00:00]} O-O {[%emt 0:00:40]} 8. Re1 {[%emt 0:00:00]} dxe4 {[%emt 0:01:35]} 9. dxe4 {[%emt 0:00:00]} Qc7 {[%emt 0:00:10]} 10. c3 {[%emt 0:00:00]} h6 {[%emt 0:01:40]} 11. Qe2 {[%emt 0:00:00]} Be6 {[%emt 0:03:06]} 12. a4 {[%emt 0:00:00]} Na5 {[%emt 0:03:20]} 13. Nh4 {[%emt 0:00:00]} Bg4 {[%emt 0:02:57]} 14. Ndf3 {[%emt 0:00:00]} Nb3 {[%emt 0:00:29]} 15. Rb1 {[%emt 0:00:00]} Nxc1 {[%emt 0:00:26]} 16. Rbxc1 {[%emt 0:00:00]} Be6 {[%emt 0:00:54]} 17. Nf5 {[%emt 0:00:00]} Bb3 {[%emt 0:02:31]} 18. Qb5 {[%emt 0:00:00]} Ba2 {[%emt 0:01:08]} 19. Ra1 {[%emt 0:00:00]} a6 {[%emt 0:04:07]} 20. Qd3 {[%emt 0:00:00]} c4 {[%emt 0:00:46]} 21. Qe2 {[%emt 0:00:00]} Bb3 {[%emt 0:01:19]} 22. Nd2 {[%emt 0:00:00]} Bc5 {[%emt 0:01:28]} 23. Nxb3 {[%emt 0:00:00]} cxb3 {[%emt 0:00:02]} 24. a5 {[%emt 0:00:00]} Rad8 {[%emt 0:01:25]} 25. Bh3 {[%emt 0:00:00]} Kh7 {[%emt 0:06:12]} 26. Kg2 {[%emt 0:10:00]} g6 {[%emt 0:03:07]} 27. Nh4 {[%emt 0:00:00]} Rd6 {[%emt 0:02:42]} 28. Rad1 {[%emt 0:00:00]} Rfd8 {[%emt 0:05:52]} 29. Rxd6 {[%emt 0:00:00]} Qxd6 {[%emt 0:02:53]} 30. Nf3 {[%emt 0:00:00]} Kg7 {[%emt 0:03:40]} 31. Qc4 {[%emt 0:00:00]} h5 {[%emt 0:06:30]} 32. Qxb3 {[%emt 0:00:00]} Ng4 {[%emt 0:00:30]} 33. Qd5 {[%emt 0:00:00]} Qe7 {[%emt 0:01:14]} 34. Qc4 {[%emt 0:00:00]} Bxf2 {[%emt 0:02:10]} 35. Bxg4 {[%emt 0:00:00]} Bxe1 {[%emt 0:00:07]} 36. Bh3 {[%emt 0:00:00]} Bd2 {[%emt 0:00:16]} 37. Qe2 {[%emt 0:00:00]} Bh6 {[%emt 0:00:21]} 38. Qc2 {[%emt 0:00:00]} g5 {[%emt 0:00:15]} 39. Ne1 {[%emt 0:00:00]} g4 {[%emt 0:00:07]} 40. Nd3 {[%emt 0:00:00]} gxh3+ {[%emt 0:00:13]} 41. Kxh3 {[%emt 0:00:00]} Qd7+ {[%emt 0:00:13]} 42. Kg2 {[%emt 0:00:00]} Qxd3 {[%emt 0:00:00]} 43. Qf2 {[%emt 0:00:00]} Qxe4+ {[%emt 0:00:00]} 44. Kh3 {[%emt 0:00:00]} Rd2 {[%emt 0:00:00]} 45. Qf1 {[%emt 0:00:00]} Qg4# {[%emt 0:00:00]} 0-1

[Event "FIDE World School-ch O-9 2025"]
[Site "Vrnjacka Banja"]
[Date "2025.03.25"]
[Round "6.5"]
[White "Pinskiy, German Ant"]
[Black "Zhanabayev, Arystan"]
[Result "0-1"]
[Annotator "NA RC"]
[ECO "B72"]
[WhiteElo "1600"]
[BlackElo "1507"]
[PlyCount "148"]
[EventDate "2025.03.19"]
[EventType "swiss"]
[EventCountry "SRB"]
[SourceTitle "playchess.com"]
[Source "ChessBase"]
[SourceQuality "1"]
[TimeControl "5400+30"]

1. e4 {[%emt 0:00:02]} c5 {[%emt 0:00:26]} 2. Nf3 {[%emt 0:00:04]} Nc6 {[%emt 0:00:08]} 3. d4 {[%emt 0:00:03]} cxd4 {[%emt 0:00:10]} 4. Nxd4 {[%emt 0:00:04]} g6 {[%emt 0:00:28]} 5. Nc3 {[%emt 0:00:10]} Bg7 {[%emt 0:00:06]} 6. Be3 {[%emt 0:00:03]} Nf6 {[%emt 0:00:15]} 7. Bc4 {[%emt 0:00:11]} O-O {[%emt 0:00:17]} 8. Bb3 {[%emt 0:00:03]} a5 {[%emt 0:02:27]} 9. O-O {[%emt 0:00:11]} d6 {[%emt 0:12:09]} 10. h3 {[%emt 0:00:38]} Bd7 {[%emt 0:02:44]} 11. a4 {[%emt 0:03:19]} Rc8 {[%emt 0:16:45]} 12. Ndb5 {[%emt 0:01:41]} Nb4 {[%emt 0:02:44]} 13. f4 {[%emt 0:04:32]} Na6 {[%emt 0:21:01]} 14. e5 {[%emt 0:04:30]} dxe5 {[%emt 0:02:43]} 15. fxe5 {[%emt 0:00:22]} Nh5 {[%emt 0:03:46]} 16. Rxf7 {[%emt 0:01:41]} Rxf7 {[%emt 0:04:17]} 17. e6 {[%emt 0:00:07]} Bxe6 {[%emt 0:04:12]} 18. Bxe6 {[%emt 0:00:12]} Qxd1+ {[%emt 0:01:10]} 19. Rxd1 {[%emt 0:00:09]} Rc6 {[%emt 0:01:08]} 20. Bxf7+ {[%emt 0:01:34]} Kxf7 {[%emt 0:00:02]} 21. Rd7 {[%emt 0:00:34]} Nb4 {[%emt 0:04:48]} 22. Rxb7 {[%emt 0:01:22]} Nxc2 {[%emt 0:00:29]} 23. Bb6 {[%emt 0:01:10]} Bh6 {[%emt 0:08:42]} 24. g4 {[%emt 0:09:26]} Rxb6 {[%emt 0:03:17]} 25. Rxb6 {[%emt 0:00:16]} Be3+ {[%emt 0:00:11]} 26. Kf1 {[%emt 0:01:00]} Bxb6 {[%emt 0:00:24]} 27. gxh5 {[%emt 0:00:25]} Ne3+ {[%emt 0:00:35]} 28. Ke2 {[%emt 0:00:22]} gxh5 {[%emt 0:00:53]} 29. Kd3 {[%emt 0:01:50]} Kg6 {[%emt 0:02:41]} 30. Ne4 {[%emt 0:02:21]} Nd5 {[%emt 0:02:01]} 31. Kc4 {[%emt 0:04:58]} Nf4 {[%emt 0:01:12]} 32. b4 {[%emt 0:03:11]} Nxh3 {[%emt 0:02:29]} 33. Nbc3 {[%emt 0:00:51]} Nf4 {[%emt 0:01:35]} 34. Kb5 {[%emt 0:01:03]} axb4 {[%emt 0:00:28]} 35. Kxb4 {[%emt 0:00:10]} h4 {[%emt 0:00:28]} 36. Kb5 {[%emt 0:00:24]} Ba7 {[%emt 0:00:24]} 37. Ka6 {[%emt 0:01:28]} Bd4 {[%emt 0:00:32]} 38. Kb5 {[%emt 0:02:41]} h3 {[%emt 0:00:28]} 39. Nd1 {[%emt 0:00:27]} Kf5 {[%emt 0:00:31]} 40. Ndf2 {[%emt 0:00:16]} h2 {[%emt 0:00:33]} 41. Ng3+ {[%emt 0:00:10]} Ke6 {[%emt 0:00:30]} 42. Ngh1 {[%emt 0:00:24]} Kd7 {[%emt 0:00:18]} 43. Kc4 {[%emt 0:00:18]} Ba7 {[%emt 0:00:23]} 44. Ne4 {[%emt 0:00:38]} h6 {[%emt 0:00:54]} 45. Nc5+ {[%emt 0:00:59]} Kc6 {[%emt 0:00:35]} 46. Nb3 {[%emt 0:00:35]} e5 {[%emt 0:00:21]} 47. Nd2 {[%emt 0:00:28]} h5 {[%emt 0:00:31]} 48. Ne4 {[%emt 0:00:11]} h4 {[%emt 0:00:22]} 49. Ng5 {[%emt 0:00:50]} Ne2 {[%emt 0:00:43]} 50. Ne4 {[%emt 0:00:20]} Bd4 {[%emt 0:00:30]} 51. a5 {[%emt 0:01:15]} Ba7 {[%emt 0:00:26]} 52. a6 {[%emt 0:00:38]} Nf4 {[%emt 0:00:25]} 53. Ng5 {[%emt 0:00:45]} Nd5 {[%emt 0:00:36]} 54. Nf3 {[%emt 0:00:37]} e4 {[%emt 0:00:33]} 55. Nxh4 {[%emt 0:01:02]} Nf4 {[%emt 0:00:27]} 56. Nf5 {[%emt 0:00:56]} Nh3 {[%emt 0:00:40]} 57. Nd4+ {[%emt 0:03:31]} Kd7 {[%emt 0:00:12]} 58. Ne2 {[%emt 0:00:16]} Kd6 {[%emt 0:00:32]} 59. Kc3 {[%emt 0:00:40]} Ke5 {[%emt 0:00:30]} 60. Kd2 {[%emt 0:00:12]} e3+ {[%emt 0:00:33]} 61. Ke1 {[%emt 0:01:09]} Ke4 {[%emt 0:00:23]} 62. Kf1 {[%emt 0:00:40]} Kf3 {[%emt 0:00:18]} 63. Neg3 {[%emt 0:01:34]} Nf4 {[%emt 0:00:59]} 64. Ke1 {[%emt 0:01:49]} e2 {[%emt 0:00:24]} 65. Nxe2 {[%emt 0:03:06]} Nxe2 {[%emt 0:00:09]} 66. Kf1 {[%emt 0:01:28]} Ng3+ {[%emt 0:00:09]} 67. Nxg3 {[%emt 0:00:06]} Kxg3 {[%emt 0:00:07]} 68. Ke2 {[%emt 0:00:04]} h1=Q {[%emt 0:00:11]} 69. Kd3 {[%emt 0:00:03]} Qd5+ {[%emt 0:00:14]} 70. Kc3 {[%emt 0:00:04]} Qd4+ {[%emt 0:00:18]} 71. Kc2 {[%emt 0:00:06]} Qe3 {[%emt 0:00:07]} 72. Kb1 {[%emt 0:00:04]} Qd2 {[%emt 0:00:11]} 73. Ka1 {[%emt 0:00:05]} Bd4+ {[%emt 0:00:12]} 74. Kb1 {[%emt 0:00:05]} Qb2# {[%emt 0:00:27]} 0-1

[Event "FIDE World School-ch O-9 2025"]
[Site "Vrnjacka Banja"]
[Date "2025.03.25"]
[Round "6.6"]
[White "Bondarev, Fedor"]
[Black "Redkin, Dmitriy S"]
[Result "1/2-1/2"]
[Annotator "NA RC"]
[ECO "B30"]
[WhiteElo "1598"]
[BlackElo "2042"]
[PlyCount "70"]
[EventDate "2025.03.19"]
[EventType "swiss"]
[EventCountry "SRB"]
[SourceTitle "playchess.com"]
[Source "ChessBase"]
[SourceQuality "1"]
[TimeControl "5400+30"]

1. Nf3 {[%emt 0:00:32]} Nf6 {[%emt 0:00:33]} 2. c4 {[%emt 0:00:09]} c5 {[%emt 0:00:11]} 3. Nc3 {[%emt 0:00:07]} Nc6 {[%emt 0:00:03]} 4. e4 {[%emt 0:01:58]} e5 {[%emt 0:00:08]} 5. g3 {[%emt 0:00:46]} g6 {[%emt 0:00:14]} 6. Bg2 {[%emt 0:00:07]} Bg7 {[%emt 0:00:09]} 7. d3 {[%emt 0:00:12]} d6 {[%emt 0:00:06]} 8. Nd5 {[%emt 0:00:08]} Nxd5 {[%emt 0:00:47]} 9. cxd5 {[%emt 0:00:37]} Nd4 {[%emt 0:00:51]} 10. Nxd4 {[%emt 0:00:20]} exd4 {[%emt 0:00:20]} 11. O-O {[%emt 0:00:05]} O-O {[%emt 0:02:08]} 12. f4 {[%emt 0:03:34]} f5 {[%emt 0:00:46]} 13. Re1 {[%emt 0:01:57]} Re8 {[%emt 0:03:29]} 14. a4 {[%emt 0:02:08]} b6 {[%emt 0:13:00]} 15. Qf3 {[%emt 0:17:34]} Bb7 {[%emt 0:02:58]} 16. Bd2 {[%emt 0:02:18]} Qd7 {[%emt 0:00:34]} 17. Bh3 {[%emt 0:01:20]} Qf7 {[%emt 0:03:26]} 18. a5 {[%emt 0:15:33]} Bc8 {[%emt 0:04:03]} 19. Bg2 {[%emt 0:01:27]} Ba6 {[%emt 0:02:21]} 20. h3 {[%emt 0:07:10]} b5 {[%emt 0:01:54]} 21. g4 {[%emt 0:00:32]} fxe4 {[%emt 0:01:22]} 22. dxe4 {[%emt 0:01:07]} c4 {[%emt 0:01:27]} 23. Bb4 {[%emt 0:00:37]} d3 {[%emt 0:03:15]} 24. Bc3 {[%emt 0:00:19]} Rab8 {[%emt 0:01:28]} 25. e5 {[%emt 0:02:00]} b4 {[%emt 0:03:42]} 26. Bd4 {[%emt 0:00:07]} Qc7 {[%emt 0:02:26]} 27. Qf2 {[%emt 0:10:21]} c3 {[%emt 0:08:00]} 28. bxc3 {[%emt 0:06:05]} bxc3 {[%emt 0:00:40]} 29. Rec1 {[%emt 0:01:02]} c2 {[%emt 0:10:24]} 30. Bxa7 {[%emt 0:06:59]} Rb7 {[%emt 0:08:05]} 31. Bb6 {[%emt 0:01:02]} Qf7 {[%emt 0:00:46]} 32. Be4 {[%emt 0:02:17]} dxe5 {[%emt 0:14:01]} 33. f5 {[%emt 0:00:23]} Bh6 {[%emt 0:06:49]} 34. Be3 {[%emt 0:00:40]} Bxe3 {[%emt 0:00:13]} 35. Qxe3 {[%emt 0:00:02]} Reb8 {[%emt 0:04:24]} 1/2-1/2